bitfinex-derivatives/quotes_ETHF0:USTF0_20250604
["timestamp","ask_amount","ask_price","bid_price","bid_amount"]
[1749007429975,12.95249,2639.5,2639.4,5.91e-06]
[1749007430869,13.01953602,2639.5,2639.4,5.91e-06]
[1749007431468,0.75748,2638.5,2638.4,0.929]
[1749007431684,5.72248,2638.5,2638.4,0.929]
[1749007432376,4.965,2638.5,2638.4,0.929]
[1749007433572,5.72248,2638.5,2638.4,4.1368]
[1749007433779,5.72248,2638.5,2638.4,2.2525]
[1749007436678,4.965,2638.5,2638.4,2.2525]
[1749007436881,4.965,2638.5,2638.4,5.4603]
[1749007437378,5.72248,2638.5,2638.4,5.4603]
[1749007437680,5.72248,2638.5,2638.4,2.2525]
[1749007439975,5.72248,2638.5,2638.4,0.929]
[1749007441685,0.75748,2638.5,2638.4,0.929]
[1749007441983,0.75754,2638.3,2638.2,2.2201906]
[1749007442783,0.75754,2638.3,2638.2,0.9240906]
[1749007444285,0.75754,2638.3,2638.2,0.0037906]
[1749007444587,0.75751,2638.4,2638.2,0.0037906]
[1749007444784,0.76318591,2638.5,2638.2,1.9917406]
[1749007444979,0.76318591,2638.5,2638.3,1.2304]
[1749007445185,4.967,2638.4,2638.3,2.88374]
[1749007445485,5.72451,2638.4,2638.3,2.1262]
[1749007446384,4.967,2638.4,2638.3,2.1262]
[1749007446987,5.72451,2638.4,2638.3,2.1262]
[1749007449589,5.72451,2638.4,2638.3,0.8958]
[1749007452480,0.75754,2638.3,2638.2,0.0037906]
[1749007457084,0.07273193,2638.5,2638.2,0.0037906]
[1749007457287,0.75754,2638.3,2638.2,1.2607906]
[1749007458290,0.75754,2638.3,2638.2,0.0037906]
[1749007458783,0.75754,2638.3,2638.2,1.2607906]
[1749007459590,0.75754,2638.3,2638.2,0.0037906]
[1749007460191,0.82458602,2638.3,2638.2,0.0037906]
[1749007460393,0.06704602,2638.3,2638.2,0.0037906]
[1749007460599,0.06704602,2638.3,2638.2,0.7613606]
[1749007460799,0.06704602,2638.3,2638.2,0.0037906]
[1749007461497,0.82458602,2638.3,2638.2,0.0037906]
[1749007462199,2.91708602,2638.3,2638.2,0.0037906]
[1749007463001,1.69658602,2638.3,2638.2,0.0037906]
[1749007463194,0.82458602,2638.3,2638.2,0.0037906]
[1749007464000,5.78458602,2638.3,2638.2,0.0037906]
[1749007472901,5.02704602,2638.3,2638.2,0.0037906]
[1749007473100,5.02704602,2638.3,2638.2,1.2224906]
[1749007473501,0.06704602,2638.3,2638.2,1.2224906]
[1749007473702,5.02704602,2638.3,2638.2,1.2224906]
[1749007473903,5.78458602,2638.3,2638.2,0.0037906]
[1749007476804,0.82458602,2638.3,2638.2,0.0037906]
[1749007477009,5.78458602,2638.3,2638.2,0.0037906]
[1749007480809,7.07938602,2638.3,2638.2,0.0037906]
[1749007481512,5.78458602,2638.3,2638.2,0.0037906]
[1749007482511,7.07938602,2638.3,2638.2,0.0037906]
[1749007484015,5.78458602,2638.3,2638.2,0.0037906]
[1749007484211,0.82458602,2638.3,2638.2,0.0037906]
[1749007484405,5.77458602,2638.3,2638.2,0.0037906]
[1749007487316,0.75768,2637.8,2637.7,0.889]
[1749007487517,5.70768,2637.8,2637.7,0.889]
[1749007489421,0.75774,2637.6,2637.5,4.1425]
[1749007489815,0.75773,2637.7,2637.5,4.1425]
[1749007490023,0.75774,2637.6,2637.5,5.4419]
[1749007493122,0.75774,2637.6,2637.5,2.2341]
[1749007494118,0.75774,2637.6,2637.5,0.9347]
[1749007495525,0.7578,2637.4,2637.3,3.2078]
[1749007495722,5.7078,2637.4,2637.3,3.2078]
[1749007496024,0.75786,2637.2,2637.1,0.9133]
[1749007497025,0.75788,2637.1,2637.0,3.2078]
[1749007497218,0.75791,2637.0,2636.9,0.93]
[1749007497419,5.70791,2637.0,2636.9,0.93]
[1749007498023,0.75794,2636.9,2636.8,0.9133]
[1749007498415,0.758,2636.7,2636.6,3.2078]
[1749007499622,0.758,2636.7,2636.6,4.4934]
[1749007501233,4.95,2637.0,2636.5,0.9229]
[1749007501435,0.75803,2636.6,2636.5,0.9229]
[1749007501733,5.70903,2636.6,2636.5,0.9229]
[1749007502038,0.75803,2636.6,2636.5,2.2275]
[1749007502232,5.70903,2636.6,2636.5,2.2275]
[1749007503033,5.70903,2636.6,2636.4,0.9345]
[1749007503034,0.75806,2636.5,2636.4,0.9345]
[1749007503232,4.951,2636.6,2636.4,0.9345]
[1749007503433,4.951,2636.6,2636.4,2.2391]
[1749007503624,0.75806,2636.5,2636.4,2.2391]
[1749007505135,4.951,2636.6,2636.4,2.2391]
[1749007505337,0.75805,2636.5,2636.4,2.2391]
[1749007505738,5.70904,2636.6,2636.4,2.2391]
[1749007505938,4.951,2636.6,2636.4,2.2391]
[1749007506135,0.75806,2636.5,2636.4,2.2391]
[1749007506737,0.06704602,2636.7,2636.4,2.2391]
[1749007506935,0.06704602,2636.7,2636.6,3.96583]
[1749007507141,0.00568591,2637.1,2637.0,0.75791]
[1749007507337,0.00568591,2637.1,2637.0,3.96571]
[1749007507634,5.70979,2637.5,2637.0,3.96571]
[1749007507635,4.952,2637.8,2637.7,0.75771]
[1749007508036,4.952,2638.2,2637.7,5.0]
[1749007508233,4.952,2638.2,2638.0,3.2078]
[1749007508745,5.70957,2638.2,2638.1,1.2476]
[1749007512346,0.7576,2638.1,2638.0,3.2078]
[1749007514147,0.75763,2638.0,2637.9,0.8587]
[1749007514346,0.75765,2637.9,2637.8,0.93348591]
[1749007514639,3.96545,2637.9,2637.8,0.00568591]
[1749007515836,3.2078,2637.9,2637.8,0.00568591]
[1749007516047,5.69465,2637.9,2637.8,0.00568591]
[1749007516941,10.69465,2637.9,2637.8,0.00568591]
[1749007518453,5.75765,2637.9,2637.8,0.00568591]
[1749007518645,10.69465,2637.9,2637.8,0.00568591]
[1749007519452,0.75786,2637.2,2637.1,5.3162]
[1749007519748,0.75786,2637.2,2637.1,4.0824]
[1749007520646,0.75786,2637.2,2637.1,3.2078]
[1749007521549,1.61686,2637.2,2637.1,3.2078]
[1749007521944,4.938,2637.2,2637.1,3.2078]
[1749007522150,5.69586,2637.2,2637.1,3.2078]
[1749007523256,5.69586,2637.2,2637.1,4.4911]
[1749007524061,4.938,2637.2,2637.1,3.2078]
[1749007524248,5.69585,2637.2,2637.1,4.4911]
[1749007525060,0.75785,2637.2,2637.1,4.4911]
[1749007525262,5.69585,2637.2,2637.1,4.4911]
[1749007529453,43.6044,2637.8,2637.4,0.75777]
[1749007529454,0.75773,2637.7,2637.4,0.75777]
[1749007529659,0.75774,2637.6,2637.5,3.0107]
[1749007529953,0.75774,2637.6,2637.5,0.9141]
[1749007530355,0.8603,2637.7,2637.1,5.3044]
[1749007530556,0.75785,2637.3,2637.2,2.1199]
[1749007531759,4.938,2637.4,2637.2,2.87776]
[1749007531959,4.938,2637.4,2637.3,1.2058]
[1749007532363,5.6958,2637.4,2637.3,1.2058]
[1749007534362,0.75783,2637.3,2637.2,0.9141]
[1749007536059,5.69581,2637.4,2637.2,1.67195]
[1749007536257,0.06704602,2637.3,2637.2,2.93185]
[1749007536563,0.82487602,2637.3,2637.2,2.174]
[1749007536858,0.06704602,2637.3,2637.2,2.174]
[1749007537168,0.82487602,2637.3,2637.2,2.174]
[1749007539163,0.82487602,2637.3,2637.2,0.9141]
[1749007539364,0.75786,2637.2,2637.1,4.0986]
[1749007539667,0.75786,2637.2,2637.1,3.2078]
[1749007543773,0.75788,2637.1,2637.0,0.4044]
[1749007544070,0.75127141,2637.1,2637.0,0.4044]
[1749007544463,0.06704602,2637.3,2637.0,0.4044]
[1749007544772,0.75788,2637.1,2637.0,0.4044]
[1749007545374,4.924,2637.1,2637.0,1.6255]
[1749007545565,0.75787,2637.2,2637.0,1.6255]
[1749007545762,5.68187,2637.2,2637.0,1.6255]
[1749007546073,0.75788,2637.1,2637.0,1.6255]
[1749007546366,0.75788,2637.1,2637.0,4.8333]
[1749007546570,0.75788,2637.1,2637.0,4.4289]
[1749007550478,0.82492602,2637.1,2637.0,4.4289]
[1749007551068,5.74892602,2637.1,2637.0,4.4289]
[1749007553080,5.74892602,2637.1,2637.0,3.2078]
[1749007555479,4.99104602,2637.1,2637.0,3.96571]
[1749007555680,0.06704602,2637.1,2637.0,5.27341]
[1749007556875,0.82492602,2637.1,2637.0,5.27341]
[1749007557178,0.06704602,2637.1,2637.0,5.27341]
[1749007559473,0.06704602,2637.1,2637.0,10.27341]
[1749007559879,0.06704602,2637.1,2637.0,11.38838859]
[1749007560779,0.06704602,2637.1,2637.0,10.27341]
[1749007560973,0.06704602,2637.1,2637.0,11.38804835]
[1749007561485,0.06704602,2637.1,2637.0,29.48204835]
[1749007561781,0.06704602,2637.1,2637.0,29.48104835]
[1749007561986,0.06704602,2637.1,2637.0,11.38804835]
[1749007562277,0.06704602,2637.1,2637.0,29.48004835]
[1749007563284,0.06704602,2637.1,2637.0,11.38804835]
[1749007563475,0.06704602,2637.1,2637.0,23.36441]
[1749007564289,0.06704602,2637.1,2637.0,5.27341]
[1749007564486,0.06704602,2637.1,2637.0,23.36341]
[1749007564782,0.06704602,2637.1,2637.0,24.47709602]
[1749007565580,0.06704602,2637.1,2637.0,6.38809602]
[1749007565882,5.68155,2638.3,2637.1,1.8947]
[1749007566073,4.924,2638.3,2638.0,3.2078]
[1749007566275,0.7576,2638.1,2638.0,3.2078]
[1749007566581,0.75774,2637.6,2637.5,5.0524]
[1749007566980,0.75774,2637.6,2637.5,4.1444]
[1749007567377,0.75774,2637.6,2637.5,3.2078]
[1749007569392,5.68174,2637.6,2637.5,3.2078]
[1749007569886,5.68174,2637.6,2637.5,3.6295]
[1749007572487,0.75773,2637.7,2637.5,3.6295]
[1749007572686,5.00613,2638.0,2637.5,4.587]
[1749007572687,4.924,2637.9,2637.5,4.587]
[1749007572888,0.75774,2637.6,2637.5,4.587]
[1749007576687,4.924,2637.9,2637.5,4.587]
[1749007576894,0.75773,2637.7,2637.5,4.587]
[1749007577296,4.908,2638.3,2637.8,0.75767]
[1749007577492,4.908,2638.3,2637.9,3.2078]
[1749007577798,5.7758,2638.3,2637.9,3.2078]
[1749007577996,0.00568591,2638.4,2637.9,3.2078]
[1749007578190,0.7576,2638.1,2638.0,2.1512]
[1749007578790,0.7576,2638.1,2638.0,0.949]
[1749007579696,0.00568591,2638.4,2637.9,3.2078]
[1749007579697,0.75762,2638.0,2637.9,3.2078]
[1749007580199,0.75773,2637.7,2637.6,3.2078]
[1749007581395,5.66573,2637.7,2637.6,3.2078]
[1749007581595,5.66573,2637.7,2637.5,0.4217]
[1749007581596,0.75774,2637.6,2637.5,0.4217]
[1749007581799,2.08458602,2637.6,2637.5,0.4217]
[1749007583606,0.82478602,2637.6,2637.5,0.4217]
[1749007584000,2.08458602,2637.6,2637.5,0.4217]
[1749007596214,0.82478602,2637.6,2637.5,0.4217]
[1749007597718,4.03258602,2637.6,2637.5,0.4217]
[1749007598020,5.33088602,2637.6,2637.5,0.4217]
[1749007598917,0.75788,2637.1,2637.0,2.1825]
[1749007599115,0.75788,2637.1,2637.0,0.9067]
[1749007599816,0.75791,2637.0,2636.9,3.2078]
[1749007602316,0.75791,2637.0,2636.7,1.2577]
[1749007602317,0.75797,2636.8,2636.7,1.2577]
[1749007603120,0.75797,2636.8,2636.6,3.2078]
[1749007603121,0.758,2636.7,2636.6,3.2078]
[1749007603422,0.75806,2636.5,2636.4,1.8012]
[1749007603722,5.10291,2636.6,2635.9,3.2078]
[1749007603922,4.909,2636.5,2636.0,3.0734]
[1749007604122,0.75811,2636.3,2636.2,3.2078]
[1749007604324,4.909,2636.4,2636.0,3.0734]
[1749007604622,4.909,2636.4,2636.0,3.83159]
[1749007604623,0.75812,2636.3,2636.0,3.83159]
[1749007604920,5.6671,2636.4,2636.1,0.75816]
[1749007605224,5.6671,2636.4,2636.2,1.2062]
[1749007605627,0.75811,2636.3,2636.2,1.2062]
[1749007607021,5.6671,2636.4,2636.2,1.2062]
[1749007607220,4.909,2636.4,2636.2,1.2062]
[1749007607528,0.75811,2636.3,2636.2,1.2062]
[1749007608322,5.65111,2636.3,2636.2,1.2062]
[1749007613227,0.75817,2636.1,2636.0,1.8672]
[1749007613632,0.75817,2636.1,2636.0,3.0888]
[1749007614531,4.893,2636.3,2635.9,3.96603]
[1749007614731,0.7582,2636.0,2635.9,3.2078]
[1749007616232,1.89565,2635.8,2634.9,3.2078]
[1749007616537,3.2078,2635.5,2635.1,2.2328]
[1749007616741,3.96616,2635.5,2635.2,1.2782]
[1749007617038,3.96615,2635.5,2635.2,1.2782]
[1749007617331,3.2078,2635.5,2635.3,0.7584]
[1749007617527,3.2078,2635.5,2635.4,1.2782]
[1749007617728,3.96614,2635.5,2635.4,1.2782]
[1749007618231,3.2078,2635.5,2635.1,0.9546]
[1749007618532,0.75837,2635.4,2635.1,2.2707]
[1749007618734,0.7584,2635.3,2635.2,1.3161]
[1749007620233,0.7584,2635.3,2635.1,0.9546]
[1749007620234,0.75843,2635.2,2635.1,0.9546]
[1749007620832,0.75843,2635.2,2635.1,2.1834]
[1749007621645,4.894,2635.3,2635.1,2.1834]
[1749007621847,5.65241,2635.3,2635.2,1.2288]
[1749007624140,0.75843,2635.2,2635.1,0.9546]
[1749007625242,5.65242,2635.3,2635.1,2.1838]
[1749007625431,5.71946602,2635.3,2635.1,2.1838]
[1749007625628,4.96104602,2635.3,2635.1,0.9546]
[1749007625828,4.96104602,2635.3,2635.2,0.75843]
[1749007626042,0.06704602,2635.3,2635.2,0.75843]
[1749007626242,0.06704602,2635.3,2635.2,5.75843]
[1749007628440,0.06704602,2635.3,2635.2,8.96623]
[1749007632046,0.06704602,2635.3,2635.2,3.96623]
[1749007634445,0.06704602,2635.3,2635.2,0.75843]
[1749007634648,0.06704602,2635.3,2635.2,3.96623]
[1749007636842,6.02e-06,2635.3,2635.2,3.96623]
[1749007638449,6.02e-06,2635.3,2635.2,8.96623]
[1749007639147,6.02e-06,2635.3,2635.2,10.07975645]
[1749007640888,6.02e-06,2635.3,2635.2,8.96623]
[1749007641448,4.878,2636.2,2636.0,0.75819]
[1749007641745,5.7406,2636.8,2636.4,0.75808]
[1749007642050,0.75803,2636.6,2636.4,0.75808]
[1749007642347,6.6481,2636.8,2636.2,3.2078]
[1749007642547,0.75805,2636.6,2636.4,0.75808]
[1749007643452,0.75801,2636.7,2636.5,0.75803]
[1749007643653,7.90888591,2636.8,2636.5,0.75803]
[1749007643847,0.75801,2636.7,2636.5,0.75803]
[1749007644455,0.75803,2636.6,2636.4,0.75807]
[1749007645453,0.75801,2636.7,2636.5,0.75804]
[1749007645847,0.75803,2636.6,2636.4,0.75807]
[1749007646648,0.75806,2636.5,2636.4,0.75807]
[1749007646852,5.79018591,2636.8,2636.2,3.21348591]
[1749007647055,0.75807,2636.5,2636.3,0.7581]
[1749007648350,1.3278,2636.7,2636.4,0.75807]
[1749007648757,1.3278,2636.7,2636.2,3.97162591]
[1749007648953,0.7581,2636.4,2636.2,3.97162591]
[1749007649154,0.9374,2636.3,2636.2,3.97162591]
[1749007649448,0.9374,2636.3,2636.2,0.00568591]
[1749007650153,1.69551,2636.3,2636.2,0.00568591]
[1749007651456,2.90961,2636.3,2636.2,0.00568591]
[1749007653550,0.9374,2636.3,2636.2,0.76382591]
[1749007654057,1.69551,2636.3,2636.2,0.00568591]
[1749007654761,1.76255602,2636.3,2636.2,0.00568591]
[1749007655158,2.98115602,2636.3,2636.2,0.00568591]
[1749007655757,2.98115602,2636.3,2636.2,0.76382591]
[1749007655954,2.98115602,2636.3,2636.2,0.00568591]
[1749007656458,2.98115602,2636.3,2636.2,0.76382591]
[1749007657059,2.98115602,2636.3,2636.2,0.00568591]
[1749007657255,2.98115602,2636.3,2636.2,0.76382591]
[1749007657960,2.98115602,2636.3,2636.2,0.00568591]
[1749007660564,1.76255602,2636.3,2636.2,0.00568591]
[1749007660863,1.00444602,2636.3,2636.2,0.76382591]
[1749007661052,0.06704602,2636.3,2636.2,0.76382591]
[1749007662157,0.06704602,2636.3,2636.2,2.99832591]
[1749007666464,0.06704602,2636.3,2636.2,6.20612591]
[1749007668861,3.21348591,2636.8,2636.7,0.758]
[1749007669167,0.758,2636.7,2636.5,0.75804]
[1749007669362,0.75803,2636.6,2636.5,0.75804]
[1749007670565,0.75807,2636.5,2636.4,0.75808]
[1749007670765,0.75807,2636.5,2636.2,5.44798591]
[1749007670968,0.75807,2636.5,2636.4,0.75808]
[1749007671167,0.75804,2636.6,2636.5,0.75805]
[1749007671370,0.75806,2636.5,2636.4,0.75807]
[1749007672063,0.75806,2636.5,2636.4,1.16227]
[1749007672369,0.75806,2636.5,2636.4,0.4042]
[1749007672766,0.75805,2636.6,2636.5,0.75806]
[1749007672964,0.75803,2636.6,2636.5,0.75806]
[1749007673172,0.75803,2636.6,2636.5,1.64386]
[1749007673677,0.75803,2636.6,2636.5,0.8858]
[1749007673868,0.00568591,2636.8,2636.5,1.64386]
[1749007674468,0.75802,2636.7,2636.6,0.75803]
[1749007674674,0.75803,2636.6,2636.5,1.64384]
[1749007674872,0.00568591,2636.8,2636.4,0.4042]
[1749007675068,0.75806,2636.5,2636.4,0.4042]
[1749007675470,1.25318591,2636.8,2636.5,0.75806]
[1749007675967,0.758,2636.7,2636.5,0.75806]
[1749007676168,0.75803,2636.6,2636.5,0.75806]
[1749007677373,1.25318591,2636.8,2636.6,0.75801]
[1749007677374,0.00568591,2636.8,2636.6,0.75801]
[1749007677562,0.76367591,2636.8,2636.4,1.7155]
[1749007677768,0.00568591,2636.8,2636.4,1.7155]
[1749007677969,0.00568591,2636.8,2636.7,0.758]
[1749007678567,0.00568591,2636.8,2636.7,3.0045]
[1749007682076,0.00568591,2636.8,2636.7,20.9935]
[1749007685185,0.07273193,2636.8,2636.7,20.9935]
[1749007687180,0.07273193,2636.8,2636.7,20.9865]
[1749007690685,3.2078,2639.0,2637.8,1.89416]
[1749007690883,0.854,2638.8,2638.3,3.2078]
[1749007691188,0.854,2638.8,2638.5,0.75747]
[1749007691189,1.61141,2638.8,2638.5,0.75747]
[1749007691586,0.75744,2638.7,2638.4,0.76318591]
[1749007692787,0.75744,2638.7,2638.5,0.75748]
[1749007693087,0.75744,2638.7,2638.4,0.76318591]
[1749007694093,1.61142,2638.8,2638.5,0.75747]
[1749007694286,0.854,2638.8,2638.7,0.75742]
[1749007694480,0.00568591,2638.9,2638.6,3.2078]
[1749007694783,0.00568591,2638.9,2638.7,0.75741]
[1749007694983,0.00568591,2638.9,2638.8,0.7574]
[1749007697487,0.00568591,2638.9,2638.6,2.85444]
[1749007697788,0.00568591,2638.9,2638.4,0.00568591]
[1749007697789,0.75748,2638.5,2638.4,0.00568591]
[1749007698991,0.9432,2638.6,2638.4,0.00568591]
[1749007699586,0.75748,2638.5,2638.4,0.00568591]
[1749007700389,2.07028,2638.5,2638.4,0.00568591]
[1749007701088,6.91228,2638.5,2638.4,0.00568591]
[1749007702986,0.7576,2638.1,2637.9,0.75764]
[1749007703190,0.7576,2638.1,2638.0,0.75763]
[1749007703391,0.75755,2638.3,2637.8,1.2839]
[1749007703599,1.63625,2638.3,2638.1,0.75758]
[1749007704495,1.63625,2638.3,2637.9,0.00568591]
[1749007704698,1.63625,2638.3,2638.1,0.75758]
[1749007705196,0.8787,2638.3,2638.2,0.75757]
[1749007705495,0.9432,2638.6,2638.0,3.2078]
[1749007705694,0.8818,2638.5,2638.1,0.75758]
[1749007705893,0.75756,2638.3,2638.1,0.75758]
[1749007706397,0.7576,2638.1,2638.0,3.2078]
[1749007707093,2.01108,2638.2,2638.0,3.96541]
[1749007707396,2.01108,2638.2,2638.1,0.7576]
[1749007707997,0.7576,2638.1,2638.0,3.96541]
[1749007708199,0.7576,2638.1,2638.0,3.2078]
[1749007709298,0.7576,2638.1,2638.0,3.96541]
[1749007709498,0.7576,2638.1,2638.0,3.2078]
[1749007709997,0.7576,2638.1,2638.0,3.96543]
[1749007711194,2.01108,2638.2,2638.0,3.2078]
[1749007711402,2.01108,2638.2,2638.1,0.7576]
[1749007711900,0.7576,2638.1,2638.0,3.2078]
[1749007713486,1.6337,2638.1,2638.0,3.2078]
[1749007713687,0.75763,2638.0,2637.9,0.00568591]
[1749007713891,7.69463,2638.0,2637.9,0.00568591]
[1749007714094,12.69463,2638.0,2637.9,0.00568591]
[1749007715302,0.75777,2637.5,2637.4,3.2078]
[1749007715797,3.2078,2637.8,2637.4,3.9656]
[1749007715999,0.75777,2637.5,2637.4,3.2078]
[1749007716596,0.75777,2637.5,2637.4,3.9656]
[1749007716895,0.75777,2637.5,2637.4,3.2078]
[1749007719893,0.75777,2637.5,2637.4,3.9656]
[1749007720095,2.124,2637.7,2637.4,3.9656]
[1749007720301,0.75774,2637.6,2637.4,3.9656]
[1749007720604,0.75777,2637.5,2637.4,0.7578]
[1749007720799,4.842,2637.6,2637.4,1.1738]
[1749007720999,0.75777,2637.5,2637.4,1.1738]
[1749007722002,0.75777,2637.5,2637.4,0.416]
[1749007722402,0.75777,2637.5,2637.4,1.1738]
[1749007723606,0.75777,2637.5,2637.4,0.416]
[1749007724210,0.75777,2637.5,2637.4,1.1738]
[1749007724705,3.2078,2637.8,2637.4,0.416]
[1749007724910,0.06704602,2638.1,2638.0,0.75763]
[1749007726008,0.06704602,2638.1,2638.0,1.65413]
[1749007726910,0.06704602,2638.1,2637.8,3.2078]
[1749007727107,0.75764,2638.0,2637.8,3.96547]
[1749007727307,0.75764,2638.0,2637.8,2.02027]
[1749007728808,0.75765,2637.9,2637.8,1.2626]
[1749007729712,0.75765,2637.9,2637.7,1.65419]
[1749007730409,0.75763,2638.0,2637.8,0.75767]
[1749007730611,0.75765,2637.9,2637.7,1.6542]
[1749007732105,0.75765,2637.9,2637.8,1.2953]
[1749007732711,0.75765,2637.9,2637.7,1.6542]
[1749007733015,3.2078,2638.0,2637.6,0.75774]
[1749007733409,0.75767,2637.9,2637.7,0.75771]
[1749007733609,3.2078,2638.0,2637.7,0.75771]
[1749007734007,0.7577,2637.8,2637.6,0.75773]
[1749007734207,0.7577,2637.8,2637.7,0.75772]
[1749007734414,0.75768,2637.9,2637.7,0.75772]
[1749007734612,3.2078,2638.0,2637.5,3.0779]
[1749007734914,0.75767,2637.9,2637.7,0.7577]
[1749007735411,3.96544,2638.0,2637.8,0.75768]
[1749007735712,3.2078,2638.0,2637.8,0.75768]
[1749007735913,0.75768,2637.9,2637.5,3.0779]
[1749007736309,3.96544,2638.0,2637.9,0.75766]
[1749007736814,0.75766,2637.9,2637.8,0.75767]
[1749007737715,3.96545,2638.0,2637.8,0.75767]
[1749007737916,0.75765,2638.0,2637.8,0.75767]
[1749007740219,0.75765,2638.0,2637.9,0.75766]
[1749007740419,0.82465602,2638.1,2637.5,3.0779]
[1749007740718,0.82465602,2638.1,2637.9,0.75764]
[1749007741817,0.82465602,2638.1,2638.0,0.75763]
[1749007742010,0.06704602,2638.1,2638.0,0.75763]
[1749007742614,3.27484602,2638.1,2637.5,1.7826]
[1749007742918,0.75773,2637.7,2637.5,1.7826]
[1749007743120,0.7577,2637.8,2637.6,0.75774]
[1749007743313,0.75772,2637.7,2637.6,0.75774]
[1749007743722,0.75771,2637.8,2637.6,0.75774]
[1749007744419,0.7577,2637.8,2637.6,0.75774]
[1749007744620,1.3017,2638.0,2637.6,0.75774]
[1749007745120,0.75772,2637.7,2637.6,0.75774]
[1749007745615,0.75771,2637.8,2637.6,0.75774]
[1749007746324,1.3017,2638.0,2637.5,3.79086]
[1749007746521,3.2078,2637.8,2637.5,0.8673]
[1749007746818,0.75777,2637.5,2637.4,0.416]
[1749007747018,3.96557,2637.5,2637.4,0.416]
[1749007747217,8.96557,2637.5,2637.4,0.416]
[1749007747618,10.17347,2637.5,2637.4,0.416]
[1749007748027,10.47342931,2637.5,2637.4,0.416]
[1749007748320,10.47342931,2637.5,2637.4,0.0368]
[1749007748520,11.61010931,2637.5,2636.7,3.2078]
[1749007748713,0.75793,2637.0,2636.8,0.75797]
[1749007748918,3.2078,2636.9,2636.4,3.2078]
[1749007749116,0.75803,2636.6,2636.5,0.9418]
[1749007752520,0.75803,2636.6,2636.3,0.9145]
[1749007752726,0.75806,2636.5,2636.3,1.7836]
[1749007753023,0.75804,2636.6,2636.3,1.7836]
[1749007753212,4.832,2636.7,2636.3,1.7836]
[1749007753213,4.832,2636.7,2636.6,0.75803]
[1749007753416,5.59,2636.7,2636.5,0.75804]
[1749007753612,0.75809,2636.4,2636.3,1.7836]
[1749007753812,0.75806,2636.5,2636.3,2.5417]
[1749007754225,0.75809,2636.4,2636.3,1.7836]
[1749007754622,3.2078,2636.4,2635.8,2.58366]
[1749007754827,0.75822,2636.0,2635.8,2.58366]
[1749007755538,0.75823,2635.9,2635.8,1.8254]
[1749007760128,0.82527602,2635.9,2635.8,1.8254]
[1749007760525,5.64927602,2635.9,2635.8,1.8254]
[1749007760730,0.75829,2635.7,2635.6,1.2917]
[1749007760928,0.75829,2635.7,2635.6,2.05002]
[1749007761129,0.75827,2635.8,2635.6,2.05002]
[1749007761531,0.75827,2635.8,2635.7,0.8636]
[1749007762128,5.65498193,2635.9,2635.7,0.8636]
[1749007762327,5.65498193,2635.9,2635.8,1.2462]
[1749007762837,4.89673193,2635.9,2635.8,2.86286]
[1749007763128,5.65496193,2635.9,2635.8,2.1046]
[1749007763333,4.89673193,2635.9,2635.8,2.86286]
[1749007763639,0.07273193,2635.9,2635.8,2.86286]
[1749007765729,4.824,2636.4,2636.3,0.7581]
[1749007767236,5.58209,2636.4,2636.1,2.18568591]
[1749007767540,5.58209,2636.4,2636.2,1.3253]
[1749007768033,4.824,2636.4,2636.2,1.3253]
[1749007768230,0.75815,2636.2,2636.1,0.88238591]
[1749007768736,0.75815,2636.2,2636.1,1.64056591]
[1749007769235,0.75815,2636.2,2636.1,0.88238591]
[1749007769636,0.75815,2636.2,2636.1,0.00568591]
[1749007770435,2.85965,2636.2,2636.1,0.00568591]
[1749007770840,1.64865,2636.2,2636.1,0.00568591]
[1749007773333,1.64865,2636.2,2635.2,1.89605]
[1749007773334,48.52676237,2636.2,2634.5,3.22911492]
[1749007773526,0.75855,2634.8,2634.7,0.9023]
[1749007773730,5.58255,2634.8,2634.7,0.9023]
[1749007773929,8.79035,2634.8,2634.7,0.9023]
[1749007774332,8.0318,2634.8,2634.7,0.9023]
[1749007774531,8.79035,2634.8,2634.7,0.9023]
[1749007780634,3.2078,2634.8,2634.7,0.9023]
[1749007780939,0.00568591,2635.0,2634.9,0.75852]
[1749007781338,0.00568591,2635.0,2634.8,1.2496]
[1749007781635,0.00568591,2635.0,2634.9,0.75852]
[1749007782438,0.00568591,2635.0,2634.8,2.00812]
[1749007782439,0.76417591,2635.0,2634.8,2.00812]
[1749007782840,0.00568591,2635.0,2634.8,2.00812]
[1749007783138,0.76418591,2635.0,2634.8,2.00812]
[1749007783334,0.00568591,2635.0,2634.9,0.75852]
[1749007783538,0.00568591,2635.0,2634.9,2.08732]
[1749007783838,3.2078,2635.4,2635.3,0.75841]
[1749007784434,0.75834,2635.6,2635.4,0.75837]
[1749007784637,0.75834,2635.6,2635.5,2.2506]
[1749007789244,0.75834,2635.6,2635.5,0.9218]
[1749007790246,0.75838,2635.4,2635.3,0.927]
[1749007791847,0.75837,2635.5,2635.3,1.68541]
[1749007792043,0.75837,2635.5,2635.3,3.01381]
[1749007792849,0.75836,2635.5,2635.3,3.01381]
[1749007793442,0.06704602,2635.6,2635.3,2.2554]
[1749007793655,0.75837,2635.5,2635.3,3.01381]
[1749007793848,0.75837,2635.5,2635.3,3.01379]
[1749007794342,0.06704602,2635.6,2635.4,0.75838]
[1749007794548,0.75835,2635.5,2635.4,0.75838]
[1749007794748,0.75835,2635.5,2635.4,1.70388]
[1749007794940,0.82538602,2635.6,2635.4,1.70388]
[1749007795141,0.75835,2635.5,2635.4,1.70388]
[1749007795652,0.75835,2635.5,2635.4,0.9455]
[1749007796950,0.75835,2635.5,2635.4,1.70388]
[1749007797849,0.75835,2635.5,2635.4,0.9455]
[1749007798251,0.75835,2635.5,2635.4,1.70388]
[1749007798450,0.75835,2635.5,2635.4,0.9455]
[1749007799647,4.817,2635.5,2635.4,0.9455]